[Event "Late-Titled-Tuesday-Blitz-September-05-2023"]
[Site "Chess.com"]
[Date "2023.09.05"]
[Round "3"]
[White "alertakobra"]
[Black "Rinqed222"]
[Result "0-1"]
[WhiteElo "2369"]
[BlackElo "2233"]
[TimeControl "180+1"]
[EndTime "14:30:08 PDT"]
[Termination "Rinqed222 won on time"]

1. d4 {[%clk 0:03:00.9]} 1... Nf6 {[%clk 0:02:59.9]} 2. c4 {[%clk 0:03:00.6]}
2... g6 {[%clk 0:03:00.4]} 3. Nc3 {[%clk 0:03:00.1]} 3... Bg7 {[%clk 0:03:01.1]}
4. e4 {[%clk 0:03:00]} 4... d6 {[%clk 0:03:01.6]} 5. h3 {[%clk 0:02:59.6]} 5...
O-O {[%clk 0:03:01.5]} 6. Be3 {[%clk 0:02:59.5]} 6... e5 {[%clk 0:03:01.7]} 7.
d5 {[%clk 0:02:59.4]} 7... Na6 {[%clk 0:03:02]} 8. g4 {[%clk 0:02:54.4]} 8...
Nc5 {[%clk 0:03:02.2]} 9. f3 {[%clk 0:02:54.3]} 9... a5 {[%clk 0:03:00.7]} 10.
Qd2 {[%clk 0:02:42.2]} 10... c6 {[%clk 0:02:56]} 11. Nge2 {[%clk 0:02:40.3]}
11... cxd5 {[%clk 0:02:51.8]} 12. cxd5 {[%clk 0:02:39.3]} 12... Rb8 {[%clk
0:02:46.8]} 13. Nb5 {[%clk 0:02:31.8]} 13... Nfxe4 {[%clk 0:02:19.5]} 14. fxe4
{[%clk 0:02:30.3]} 14... Nxe4 {[%clk 0:02:19.7]} 15. Qc2 {[%clk 0:02:14.7]}
15... Qh4+ {[%clk 0:02:19.1]} 16. Kd1 {[%clk 0:02:14.3]} 16... Bxg4 {[%clk
0:02:01.4]} 17. Bg2 {[%clk 0:01:55.7]} 17... Bxe2+ {[%clk 0:01:54]} 18. Qxe2
{[%clk 0:01:52]} 18... Ng3 {[%clk 0:01:51.4]} 19. Qf2 {[%clk 0:01:41.9]} 19...
Qa4+ {[%clk 0:01:45]} 20. b3 {[%clk 0:01:42.1]} 20... Nxh1 {[%clk 0:01:44.6]}
21. bxa4 {[%clk 0:01:38.4]} 21... Nxf2+ {[%clk 0:01:44.2]} 22. Bxf2 {[%clk
0:01:39.3]} 22... e4 {[%clk 0:00:51]} 23. Rc1 {[%clk 0:01:36.9]} 23... Be5
{[%clk 0:00:51]} 24. Bxe4 {[%clk 0:01:33.5]} 24... f5 {[%clk 0:00:51.5]} 25. Bf3
{[%clk 0:01:29.3]} 25... Rfc8 {[%clk 0:00:49.6]} 26. Rb1 {[%clk 0:01:21.5]}
26... Rc4 {[%clk 0:00:45.6]} 27. a3 {[%clk 0:00:56.5]} 27... Re8 {[%clk
0:00:25.9]} 28. Kd2 {[%clk 0:00:52.2]} 28... Rf4 {[%clk 0:00:21.6]} 29. Rb3
{[%clk 0:00:49.3]} 29... Rxa4 {[%clk 0:00:18.2]} 30. Nc7 {[%clk 0:00:42.8]}
30... Bf4+ {[%clk 0:00:17.3]} 31. Kd1 {[%clk 0:00:40.9]} 31... Rc8 {[%clk
0:00:15.4]} 32. Ne6 {[%clk 0:00:36.8]} 32... Rc1+ {[%clk 0:00:12.8]} 33. Ke2
{[%clk 0:00:37.1]} 33... Rc2+ {[%clk 0:00:13.5]} 34. Kf1 {[%clk 0:00:37.3]}
34... Be5 {[%clk 0:00:11.5]} 35. Bd1 {[%clk 0:00:27.5]} 35... Rc1 {[%clk
0:00:11]} 36. Ke2 {[%clk 0:00:27.5]} 36... Re4+ {[%clk 0:00:10.4]} 37. Kd2
{[%clk 0:00:27.8]} 37... Ra1 {[%clk 0:00:08.8]} 38. Bc2 {[%clk 0:00:24.6]} 38...
Ra2 {[%clk 0:00:09]} 39. Kd1 {[%clk 0:00:20.4]} 39... Rxc2 {[%clk 0:00:07.4]}
40. Kxc2 {[%clk 0:00:19.9]} 40... Re2+ {[%clk 0:00:08.3]} 41. Kd3 {[%clk
0:00:20.5]} 41... Rxf2 {[%clk 0:00:09.2]} 42. Rxb7 {[%clk 0:00:20.2]} 42... Rf3+
{[%clk 0:00:09.3]} 43. Kc4 {[%clk 0:00:19.9]} 43... Rxa3 {[%clk 0:00:09.6]} 44.
Rb8+ {[%clk 0:00:20]} 44... Kf7 {[%clk 0:00:08.3]} 45. Rf8+ {[%clk 0:00:19.9]}
45... Ke7 {[%clk 0:00:09]} 46. Ra8 {[%clk 0:00:18.7]} 46... Rxh3 {[%clk
0:00:07.4]} 47. Ra7+ {[%clk 0:00:17.9]} 47... Kf6 {[%clk 0:00:07.8]} 48. Rxa5
{[%clk 0:00:17.4]} 48... Rc3+ {[%clk 0:00:08]} 49. Kb5 {[%clk 0:00:16.7]} 49...
h5 {[%clk 0:00:08.5]} 50. Ra8 {[%clk 0:00:15.1]} 50... h4 {[%clk 0:00:09]} 51.
Rf8+ {[%clk 0:00:15.1]} 51... Ke7 {[%clk 0:00:08.6]} 52. Rg8 {[%clk 0:00:14.5]}
52... Kf7 {[%clk 0:00:08.7]} 53. Rf8+ {[%clk 0:00:14.2]} 53... Ke7 {[%clk
0:00:09.4]} 54. Rg8 {[%clk 0:00:14.6]} 54... Rg3 {[%clk 0:00:08.9]} 55. Kc6
{[%clk 0:00:14.1]} 55... h3 {[%clk 0:00:09.3]} 56. Ra8 {[%clk 0:00:08.1]} 56...
Rc3+ {[%clk 0:00:09.5]} 57. Kb5 {[%clk 0:00:07.7]} 57... h2 {[%clk 0:00:08.5]}
58. Ra7+ {[%clk 0:00:08.1]} 58... Kf6 {[%clk 0:00:08.3]} 59. Rh7 {[%clk
0:00:08.6]} 59... Rc2 {[%clk 0:00:07.8]} 60. Kb6 {[%clk 0:00:08.1]} 60... Rb2+
{[%clk 0:00:08.1]} 61. Kc7 {[%clk 0:00:08.1]} 61... Rb1 {[%clk 0:00:08.7]} 62.
Kd7 {[%clk 0:00:08.5]} 62... h1=Q {[%clk 0:00:07.8]} 63. Re7 {[%clk 0:00:03.8]}
63... Qxd5 {[%clk 0:00:06.1]} 64. Ke8 {[%clk 0:00:02.4]} 64... Rb8+ {[%clk
0:00:06.1]} 65. Nd8 {[%clk 0:00:02.1]} 65... Rxd8+ {[%clk 0:00:05.4]} 66. Kxd8
{[%clk 0:00:02.4]} 66... Qa8+ {[%clk 0:00:06.1]} 67. Kd7 {[%clk 0:00:02.5]}
67... Qa7+ {[%clk 0:00:06.5]} 0-1

[Event "Late-Titled-Tuesday-Blitz-September-05-2023"]
[Site "Chess.com"]
[Date "2023.09.05"]
[Round "3"]
[White "mishanick"]
[Black "GaiozNigalidze"]
[Result "1-0"]
[WhiteElo "3069"]
[BlackElo "2761"]
[TimeControl "180+1"]
[EndTime "14:30:09 PDT"]
[Termination "mishanick won by resignation"]

1. d4 {[%clk 0:02:59.4]} 1... d5 {[%clk 0:03:00.3]} 2. c4 {[%clk 0:03:00]} 2...
dxc4 {[%clk 0:03:01.2]} 3. Nf3 {[%clk 0:03:00.1]} 3... Nf6 {[%clk 0:03:01.6]} 4.
e3 {[%clk 0:03:00.5]} 4... e6 {[%clk 0:03:02]} 5. Bxc4 {[%clk 0:03:00.9]} 5...
a6 {[%clk 0:03:02]} 6. O-O {[%clk 0:03:01.3]} 6... b5 {[%clk 0:03:02.4]} 7. Bb3
{[%clk 0:03:01.7]} 7... Bb7 {[%clk 0:03:02.8]} 8. Nc3 {[%clk 0:03:02.2]} 8...
Nbd7 {[%clk 0:03:01]} 9. e4 {[%clk 0:03:01.4]} 9... b4 {[%clk 0:02:52.5]} 10. e5
{[%clk 0:03:02.1]} 10... bxc3 {[%clk 0:02:52.1]} 11. exf6 {[%clk 0:03:02]} 11...
Nxf6 {[%clk 0:02:43.3]} 12. bxc3 {[%clk 0:02:55.5]} 12... Bd6 {[%clk 0:02:32]}
13. Ba4+ {[%clk 0:02:54.9]} 13... Kf8 {[%clk 0:01:55.8]} 14. Ne5 {[%clk
0:02:51.1]} 14... h6 {[%clk 0:01:42]} 15. Qe2 {[%clk 0:02:47.5]} 15... Nd5
{[%clk 0:01:13]} 16. Bd2 {[%clk 0:02:37.2]} 16... Bxe5 {[%clk 0:01:07.9]} 17.
Qxe5 {[%clk 0:02:36.4]} 17... Nb6 {[%clk 0:01:03.8]} 18. Bb3 {[%clk 0:02:36.1]}
18... Qd6 {[%clk 0:00:52.5]} 19. Bf4 {[%clk 0:02:29]} 19... Qxe5 {[%clk
0:00:48.1]} 20. Bxe5 {[%clk 0:02:29.9]} 20... Rc8 {[%clk 0:00:48.4]} 21. c4
{[%clk 0:02:29]} 21... Nd7 {[%clk 0:00:45.9]} 22. Bf4 {[%clk 0:02:28.3]} 22...
Ke7 {[%clk 0:00:45.9]} 23. Rad1 {[%clk 0:02:24.5]} 23... Rhd8 {[%clk 0:00:42.1]}
24. Rfe1 {[%clk 0:02:24.9]} 24... Kf8 {[%clk 0:00:39.8]} 25. f3 {[%clk
0:02:23.5]} 25... Nb6 {[%clk 0:00:38.5]} 26. Kf2 {[%clk 0:02:18.5]} 26... a5
{[%clk 0:00:38.5]} 27. c5 {[%clk 0:02:13.5]} 27... Nd5 {[%clk 0:00:36.3]} 28.
Bd2 {[%clk 0:02:14.2]} 28... Ra8 {[%clk 0:00:32.8]} 29. Ba4 {[%clk 0:02:14.6]}
29... Nb4 {[%clk 0:00:30.8]} 30. Bf4 {[%clk 0:02:11.7]} 30... Bc6 {[%clk
0:00:26.9]} 31. Bb3 {[%clk 0:01:50.3]} 31... Rd7 {[%clk 0:00:27.2]} 32. Rd2
{[%clk 0:01:46.3]} 32... Bd5 {[%clk 0:00:26.2]} 33. Ba4 {[%clk 0:01:41.4]} 33...
Bc6 {[%clk 0:00:26.5]} 34. Bd1 {[%clk 0:01:33.6]} 34... Rad8 {[%clk 0:00:26.6]}
35. a3 {[%clk 0:01:23.7]} 35... Rxd4 {[%clk 0:00:23.5]} 36. Rxd4 {[%clk
0:01:22.2]} 36... Rxd4 {[%clk 0:00:24.4]} 37. Bxc7 {[%clk 0:01:22.7]} 37... Nd3+
{[%clk 0:00:21.2]} 38. Ke3 {[%clk 0:01:22.7]} 38... Rd7 {[%clk 0:00:21.3]} 39.
Rg1 {[%clk 0:01:18]} 39... Nb2 {[%clk 0:00:18]} 40. Bd6+ {[%clk 0:01:16.4]}
40... Ke8 {[%clk 0:00:17.8]} 41. Be2 {[%clk 0:01:17.1]} 41... Rb7 {[%clk
0:00:16.1]} 42. Rb1 {[%clk 0:01:10.9]} 42... Kd7 {[%clk 0:00:16.4]} 43. Kd4
{[%clk 0:01:03.1]} 43... f6 {[%clk 0:00:14.2]} 44. f4 {[%clk 0:01:01.8]} 44...
Na4 {[%clk 0:00:08.9]} 45. Rxb7+ {[%clk 0:00:54.2]} 45... Bxb7 {[%clk
0:00:09.8]} 46. g4 {[%clk 0:00:51.7]} 46... g5 {[%clk 0:00:06.7]} 47. fxg5
{[%clk 0:00:43]} 47... hxg5 {[%clk 0:00:07.6]} 48. h3 {[%clk 0:00:34]} 48... Bc6
{[%clk 0:00:07.4]} 49. Bf1 {[%clk 0:00:27.9]} 49... Nb2 {[%clk 0:00:07.5]} 50.
Be2 {[%clk 0:00:26.2]} 50... Na4 {[%clk 0:00:07.5]} 51. Bf8 {[%clk 0:00:17]}
51... Nb2 {[%clk 0:00:05.9]} 52. Ba6 {[%clk 0:00:15]} 52... Nd1 {[%clk 0:00:05]}
53. Bd6 {[%clk 0:00:12.9]} 53... Nf2 {[%clk 0:00:04.3]} 54. Be2 {[%clk
0:00:12.1]} 54... Nxh3 {[%clk 0:00:02.9]} 55. Ke3 {[%clk 0:00:12.7]} 55... e5
{[%clk 0:00:03.1]} 56. Bd3 {[%clk 0:00:13.2]} 56... e4 {[%clk 0:00:03]} 57. Bxe4
{[%clk 0:00:13.2]} 57... Bxe4 {[%clk 0:00:03.9]} 58. Kxe4 {[%clk 0:00:14.1]}
58... Ke6 {[%clk 0:00:04.5]} 59. Bg3 {[%clk 0:00:14.3]} 59... Ng1 {[%clk
0:00:03.9]} 60. Ke3 {[%clk 0:00:10.5]} 60... Kd5 {[%clk 0:00:03.1]} 61. Kf2
{[%clk 0:00:09.6]} 61... Nh3+ {[%clk 0:00:03.7]} 62. Kg2 {[%clk 0:00:09.7]}
62... Nf4+ {[%clk 0:00:04.1]} 63. Bxf4 {[%clk 0:00:09.9]} 63... gxf4 {[%clk
0:00:05]} 64. Kf3 {[%clk 0:00:10.8]} 64... Kxc5 {[%clk 0:00:05.5]} 65. Kxf4
{[%clk 0:00:11.7]} 65... Kc4 {[%clk 0:00:06.2]} 66. Kf5 {[%clk 0:00:12.3]} 66...
Kb3 {[%clk 0:00:06.8]} 67. Kxf6 {[%clk 0:00:13.2]} 67... Kxa3 {[%clk 0:00:07.5]}
68. g5 {[%clk 0:00:14.1]} 68... Kb3 {[%clk 0:00:08]} 69. g6 {[%clk 0:00:15]}
69... a4 {[%clk 0:00:08.7]} 70. g7 {[%clk 0:00:15.9]} 70... a3 {[%clk
0:00:09.3]} 71. g8=Q+ {[%clk 0:00:16.8]} 71... Kb2 {[%clk 0:00:09.8]} 72. Qb8+
{[%clk 0:00:17.4]} 72... Kc2 {[%clk 0:00:10.3]} 73. Qc7+ {[%clk 0:00:17.6]}
73... Kb2 {[%clk 0:00:10.8]} 74. Qb6+ {[%clk 0:00:18.1]} 74... Kc2 {[%clk
0:00:11.4]} 75. Qc5+ {[%clk 0:00:18.5]} 75... Kb2 {[%clk 0:00:11.7]} 76. Qb5+
{[%clk 0:00:19.1]} 76... Ka2 {[%clk 0:00:12.4]} 77. Qb4 {[%clk 0:00:19.4]} 77...
Ka1 {[%clk 0:00:13.1]} 78. Qxa3+ {[%clk 0:00:20]} 1-0

[Event "Late-Titled-Tuesday-Blitz-September-05-2023"]
[Site "Chess.com"]
[Date "2023.09.05"]
[Round "3"]
[White "BeanScreen"]
[Black "Lady_Nika"]
[Result "1-0"]
[WhiteElo "2706"]
[BlackElo "2477"]
[TimeControl "180+1"]
[EndTime "14:30:09 PDT"]
[Termination "BeanScreen won on time"]

1. e4 {[%clk 0:03:00.9]} 1... c5 {[%clk 0:02:57.8]} 2. Nf3 {[%clk 0:02:59.2]}
2... e6 {[%clk 0:02:57.3]} 3. d4 {[%clk 0:02:59.4]} 3... cxd4 {[%clk 0:02:57.5]}
4. Nxd4 {[%clk 0:03:00.3]} 4... Nc6 {[%clk 0:02:58.4]} 5. Nc3 {[%clk 0:03:00.3]}
5... a6 {[%clk 0:02:58.6]} 6. g3 {[%clk 0:02:59.6]} 6... Qc7 {[%clk 0:02:58.6]}
7. Bg2 {[%clk 0:02:59.1]} 7... Nf6 {[%clk 0:02:59]} 8. O-O {[%clk 0:02:58.9]}
8... Be7 {[%clk 0:02:58.9]} 9. Re1 {[%clk 0:02:58.1]} 9... d6 {[%clk 0:02:58.9]}
10. Nxc6 {[%clk 0:02:57.9]} 10... bxc6 {[%clk 0:02:58.7]} 11. e5 {[%clk
0:02:58.4]} 11... dxe5 {[%clk 0:02:52.5]} 12. Rxe5 {[%clk 0:02:58.1]} 12... Nd5
{[%clk 0:02:49]} 13. Nxd5 {[%clk 0:02:52.3]} 13... cxd5 {[%clk 0:02:38.8]} 14.
Bf4 {[%clk 0:02:52]} 14... Qb6 {[%clk 0:02:28]} 15. c4 {[%clk 0:02:40.2]} 15...
Bf6 {[%clk 0:02:06.5]} 16. Qxd5 {[%clk 0:02:18.1]} 16... Ra7 {[%clk 0:01:58.9]}
17. Qc6+ {[%clk 0:01:26]} 17... Qxc6 {[%clk 0:01:58.5]} 18. Bxc6+ {[%clk
0:01:26.9]} 18... Bd7 {[%clk 0:01:58.9]} 19. Rc5 {[%clk 0:01:14]} 19... O-O
{[%clk 0:01:52.3]} 20. Bxd7 {[%clk 0:00:59.3]} 20... Rxd7 {[%clk 0:01:51.3]} 21.
Be5 {[%clk 0:01:00]} 21... Bxe5 {[%clk 0:01:44.6]} 22. Rxe5 {[%clk 0:01:00.9]}
22... Rc8 {[%clk 0:01:45]} 23. b3 {[%clk 0:01:00.8]} 23... Rd6 {[%clk
0:01:39.8]} 24. Rae1 {[%clk 0:00:54.8]} 24... Kf8 {[%clk 0:01:38.9]} 25. R1e2
{[%clk 0:00:54.1]} 25... Ke7 {[%clk 0:01:38.5]} 26. Ra5 {[%clk 0:00:52.3]} 26...
f6 {[%clk 0:01:35.1]} 27. c5 {[%clk 0:00:51.4]} 27... Rdc6 {[%clk 0:01:34.3]}
28. b4 {[%clk 0:00:51.7]} 28... Rb8 {[%clk 0:01:34]} 29. Ra4 {[%clk 0:00:49]}
29... Rd8 {[%clk 0:01:26.1]} 30. Re3 {[%clk 0:00:46.5]} 30... e5 {[%clk
0:01:19.7]} 31. Rea3 {[%clk 0:00:45.7]} 31... Rd4 {[%clk 0:01:18.5]} 32. Rb3
{[%clk 0:00:38.4]} 32... Ke6 {[%clk 0:01:14.1]} 33. a3 {[%clk 0:00:37.7]} 33...
Kd5 {[%clk 0:01:13.9]} 34. Ra5 {[%clk 0:00:29.5]} 34... Kc4 {[%clk 0:01:01.8]}
35. Rb1 {[%clk 0:00:19.7]} 35... Rd3 {[%clk 0:00:55.1]} 36. a4 {[%clk
0:00:18.2]} 36... Ra3 {[%clk 0:00:48.9]} 37. b5 {[%clk 0:00:16.3]} 37... axb5
{[%clk 0:00:34.7]} 38. axb5 {[%clk 0:00:17.2]} 38... Rxa5 {[%clk 0:00:33.8]} 39.
bxc6 {[%clk 0:00:17.7]} 39... Ra8 {[%clk 0:00:23.3]} 40. Rb7 {[%clk 0:00:14.1]}
40... Kxc5 {[%clk 0:00:22.2]} 41. Rxg7 {[%clk 0:00:14.6]} 41... Kxc6 {[%clk
0:00:22.4]} 42. Rxh7 {[%clk 0:00:14.9]} 42... Kd6 {[%clk 0:00:21.9]} 43. h4
{[%clk 0:00:13.9]} 43... Ke6 {[%clk 0:00:22.3]} 44. g4 {[%clk 0:00:11.4]} 44...
Ra4 {[%clk 0:00:21.6]} 45. Rg7 {[%clk 0:00:11.3]} 45... f5 {[%clk 0:00:20.5]}
46. f3 {[%clk 0:00:10.9]} 46... fxg4 {[%clk 0:00:20]} 47. fxg4 {[%clk
0:00:11.8]} 47... Kf6 {[%clk 0:00:20.4]} 48. Rg8 {[%clk 0:00:11.2]} 48... Ra2
{[%clk 0:00:20]} 49. h5 {[%clk 0:00:11.1]} 49... e4 {[%clk 0:00:20]} 50. h6
{[%clk 0:00:11]} 50... Ra7 {[%clk 0:00:20]} 51. g5+ {[%clk 0:00:10.7]} 51... Kf5
{[%clk 0:00:18.9]} 52. g6 {[%clk 0:00:11]} 52... Ra1+ {[%clk 0:00:16]} 53. Kf2
{[%clk 0:00:09.1]} 53... Ra2+ {[%clk 0:00:15.5]} 54. Kg3 {[%clk 0:00:09.3]}
54... Ra3+ {[%clk 0:00:14.3]} 55. Kh4 {[%clk 0:00:08.1]} 55... e3 {[%clk
0:00:14.2]} 56. h7 {[%clk 0:00:07.2]} 56... Ra4+ {[%clk 0:00:08.5]} 57. Kg3
{[%clk 0:00:06.9]} 57... e2 {[%clk 0:00:03]} 58. Kf2 {[%clk 0:00:07.1]} 58...
Re4 {[%clk 0:00:03]} 59. Ke1 {[%clk 0:00:07.4]} 59... Kf4 {[%clk 0:00:01.1]} 60.
h8=Q {[%clk 0:00:07]} 1-0

[Event "Late-Titled-Tuesday-Blitz-September-05-2023"]
[Site "Chess.com"]
[Date "2023.09.05"]
[Round "3"]
[White "crazy_but_lazy"]
[Black "Akhayan"]
[Result "1-0"]
[WhiteElo "2592"]
[BlackElo "2365"]
[TimeControl "180+1"]
[EndTime "14:30:14 PDT"]
[Termination "crazy_but_lazy won by resignation"]

1. Nf3 {[%clk 0:03:00.9]} 1... Nf6 {[%clk 0:02:54.8]} 2. c4 {[%clk 0:03:01.2]}
2... g6 {[%clk 0:02:54]} 3. d4 {[%clk 0:03:01.5]} 3... Bg7 {[%clk 0:02:53.6]} 4.
g3 {[%clk 0:03:01.8]} 4... c6 {[%clk 0:02:53.4]} 5. Bg2 {[%clk 0:03:00.3]} 5...
d5 {[%clk 0:02:53.7]} 6. O-O {[%clk 0:03:00]} 6... O-O {[%clk 0:02:54.2]} 7.
cxd5 {[%clk 0:02:59]} 7... cxd5 {[%clk 0:02:54.1]} 8. Ne5 {[%clk 0:02:59.8]}
8... e6 {[%clk 0:02:53.6]} 9. Nc3 {[%clk 0:02:59.2]} 9... Nfd7 {[%clk 0:02:54]}
10. f4 {[%clk 0:02:52.2]} 10... Nc6 {[%clk 0:02:54.3]} 11. Be3 {[%clk
0:02:51.4]} 11... f6 {[%clk 0:02:39.7]} 12. Nxd7 {[%clk 0:02:37.5]} 12... Bxd7
{[%clk 0:02:37.8]} 13. Bf2 {[%clk 0:02:23]} 13... f5 {[%clk 0:02:37]} 14. e3
{[%clk 0:02:23.4]} 14... Ne7 {[%clk 0:02:34.8]} 15. h3 {[%clk 0:02:19.9]} 15...
Nc8 {[%clk 0:02:34.6]} 16. g4 {[%clk 0:02:20.4]} 16... Nd6 {[%clk 0:02:34.9]}
17. g5 {[%clk 0:02:20.1]} 17... Rc8 {[%clk 0:02:26.8]} 18. h4 {[%clk 0:02:20.1]}
18... h5 {[%clk 0:02:19.6]} 19. gxh6 {[%clk 0:02:16.3]} 19... Bxh6 {[%clk
0:02:19.5]} 20. Qf3 {[%clk 0:02:16.8]} 20... Kh7 {[%clk 0:02:18.5]} 21. Rac1
{[%clk 0:02:13.1]} 21... Rg8 {[%clk 0:02:16.4]} 22. Kh2 {[%clk 0:02:11.3]} 22...
Ne4 {[%clk 0:02:16.1]} 23. Nxe4 {[%clk 0:02:11.2]} 23... dxe4 {[%clk 0:02:15.5]}
24. Qe2 {[%clk 0:02:09]} 24... a6 {[%clk 0:02:02.7]} 25. Rg1 {[%clk 0:02:06.6]}
25... Bb5 {[%clk 0:02:01.6]} 26. Qd2 {[%clk 0:02:07.2]} 26... Bg7 {[%clk
0:01:49.1]} 27. b3 {[%clk 0:01:59]} 27... Bf6 {[%clk 0:01:47.4]} 28. Rh1 {[%clk
0:01:56.1]} 28... Kg7 {[%clk 0:01:43.2]} 29. Rxc8 {[%clk 0:01:54.6]} 29... Qxc8
{[%clk 0:01:42.6]} 30. Rc1 {[%clk 0:01:55.2]} 30... Qd8 {[%clk 0:01:42.4]} 31.
Kh3 {[%clk 0:01:29]} 31... Rh8 {[%clk 0:01:41.2]} 32. Qe1 {[%clk 0:01:29.2]}
32... Bc6 {[%clk 0:01:32.2]} 33. Rc5 {[%clk 0:01:26.5]} 33... Be7 {[%clk
0:01:30.4]} 34. Rc2 {[%clk 0:01:23]} 34... g5 {[%clk 0:01:23.1]} 35. fxg5 {[%clk
0:01:21]} 35... Bxg5 {[%clk 0:01:23.7]} 36. Bg3 {[%clk 0:01:19.6]} 36... Bf6
{[%clk 0:01:22.7]} 37. Bf1 {[%clk 0:01:18.2]} 37... Kf7 {[%clk 0:01:21.1]} 38.
Bc4 {[%clk 0:01:17.4]} 38... Qg8 {[%clk 0:01:11.2]} 39. Be2 {[%clk 0:01:00.7]}
39... Qg7 {[%clk 0:00:59.1]} 40. Bd1 {[%clk 0:00:56.5]} 40... Qh6 {[%clk
0:00:48.3]} 41. Rg2 {[%clk 0:00:53.7]} 41... Bd5 {[%clk 0:00:43.8]} 42. h5
{[%clk 0:00:52.4]} 42... Ke7 {[%clk 0:00:42.6]} 43. Bf4 {[%clk 0:00:49.6]} 43...
Qh7 {[%clk 0:00:40.8]} 44. Qb4+ {[%clk 0:00:49.2]} 44... Kf7 {[%clk 0:00:39.4]}
45. Qd6 {[%clk 0:00:43]} 45... Rg8 {[%clk 0:00:36.9]} 46. Qc7+ {[%clk
0:00:35.7]} 46... Be7 {[%clk 0:00:36.9]} 47. Bd6 {[%clk 0:00:36.2]} 47... Re8
{[%clk 0:00:28.5]} 48. Be5 {[%clk 0:00:22.9]} 48... f4 {[%clk 0:00:28.6]} 49.
Bxf4 {[%clk 0:00:18.8]} 49... Qf5+ {[%clk 0:00:27.7]} 50. Bg4 {[%clk 0:00:18.6]}
50... Qf6 {[%clk 0:00:26.9]} 51. Bg3 {[%clk 0:00:16.3]} 51... Qf1 {[%clk
0:00:26.2]} 52. Qf4+ {[%clk 0:00:10.3]} 52... Qxf4 {[%clk 0:00:25.3]} 53. Bxf4
{[%clk 0:00:11.2]} 53... Bf6 {[%clk 0:00:25]} 54. Rf2 {[%clk 0:00:10.2]} 54...
Ke7 {[%clk 0:00:23.8]} 55. Be5 {[%clk 0:00:09.1]} 55... Bxe5 {[%clk 0:00:23.3]}
56. dxe5 {[%clk 0:00:10]} 56... Rh8 {[%clk 0:00:23.3]} 57. Rf6 {[%clk 0:00:10]}
57... b5 {[%clk 0:00:21.7]} 58. h6 {[%clk 0:00:10.5]} 58... a5 {[%clk 0:00:22]}
59. Kh4 {[%clk 0:00:09.4]} 59... a4 {[%clk 0:00:22.3]} 60. Kg5 {[%clk
0:00:09.6]} 60... axb3 {[%clk 0:00:21.5]} 61. axb3 {[%clk 0:00:10.5]} 61... Bxb3
{[%clk 0:00:21.5]} 62. Rg6 {[%clk 0:00:09.9]} 62... Bd5 {[%clk 0:00:20.6]} 63.
Rg7+ {[%clk 0:00:10.1]} 63... Kf8 {[%clk 0:00:21]} 64. Kg6 {[%clk 0:00:09.5]}
64... b4 {[%clk 0:00:20.5]} 65. h7 {[%clk 0:00:07.5]} 65... b3 {[%clk
0:00:19.4]} 66. Rf7+ {[%clk 0:00:05.9]} 66... Ke8 {[%clk 0:00:19.1]} 67. Bd1
{[%clk 0:00:06.3]} 67... b2 {[%clk 0:00:18.4]} 68. Ba4+ {[%clk 0:00:05.8]} 68...
Kd8 {[%clk 0:00:18.1]} 69. Bc2 {[%clk 0:00:06.7]} 69... Bb3 {[%clk 0:00:15.5]}
70. Bb1 {[%clk 0:00:06.7]} 70... Ba4 {[%clk 0:00:12.8]} 71. Kg7 {[%clk
0:00:07.1]} 71... Re8 {[%clk 0:00:09.5]} 72. Rf8 {[%clk 0:00:07.3]} 72... Rxf8
{[%clk 0:00:09.5]} 73. Kxf8 {[%clk 0:00:08.2]} 73... Kd7 {[%clk 0:00:09.4]} 74.
h8=Q {[%clk 0:00:08.5]} 1-0